[Event "Titled Tuesday Blitz June 28 Early 2022"]
[White "Hovhannisyan, Robert"]
[Black "Agasarov, Benik"]
[WhiteFideId "13302507"]
[BlackFideId "13314823"]
[WhiteElo "2570"]
[BlackElo "2700"]
[Result "1-0"]
[Round "10"]
[TimeControl "180+1"]
[Date "2022.06.28"]
[WhiteClock "0:00:05"]
[BlackClock "0:00:13"]

1. e4 {[%clk 0:03:00]}  e5 {[%clk 0:02:55]} 2. Nf3 {[%clk 0:03:00]}  Nc6 {[%clk 0:02:55]} 3. Bb5 {[%clk 0:03:00]}  Nf6 {[%clk 0:02:55]} 4. O-O {[%clk 0:03:00]}  Nxe4 {[%clk 0:02:53]} 5. d4 {[%clk 0:02:56]}  Nd6 {[%clk 0:02:52]} 6. Bxc6 {[%clk 0:02:57]}  dxc6 {[%clk 0:02:52]} 7. dxe5 {[%clk 0:02:57]}  Nf5 {[%clk 0:02:53]} 8. Qxd8+ {[%clk 0:02:57]}  Kxd8 {[%clk 0:02:53]} 9. Nc3 {[%clk 0:02:58]}  Ke8 {[%clk 0:02:52]} 10. h3 {[%clk 0:02:57]}  h5 {[%clk 0:02:51]} 11. Bf4 {[%clk 0:02:57]}  Be7 {[%clk 0:02:51]} 12. Rad1 {[%clk 0:02:57]}  Be6 {[%clk 0:02:51]} 13. Ng5 {[%clk 0:02:57]}  Rh6 {[%clk 0:02:49]} 14. Nxe6 {[%clk 0:02:55]}  Rxe6 {[%clk 0:02:49]} 15. g4 {[%clk 0:02:55]}  hxg4 {[%clk 0:02:47]} 16. hxg4 {[%clk 0:02:56]}  Rg6 {[%clk 0:02:47]} 17. f3 {[%clk 0:02:50]}  Bc5+ {[%clk 0:02:39]} 18. Kg2 {[%clk 0:02:33]}  Be3 {[%clk 0:02:29]} 19. Bg3 {[%clk 0:02:29]}  Nxg3 {[%clk 0:02:22]} 20. Kxg3 {[%clk 0:02:30]}  Ke7 {[%clk 0:02:09]} 21. f4 {[%clk 0:02:21]}  Rh6 {[%clk 0:02:08]} 22. Rh1 {[%clk 0:02:15]}  Rxh1 {[%clk 0:02:03]} 23. Rxh1 {[%clk 0:02:16]}  g5 {[%clk 0:02:03]} 24. fxg5 {[%clk 0:01:59]}  Bxg5 {[%clk 0:02:04]} 25. Kf3 {[%clk 0:01:49]}  Ke6 {[%clk 0:01:51]} 26. Rh5 {[%clk 0:01:46]}  Be7 {[%clk 0:01:35]} 27. Ne2 {[%clk 0:01:45]}  Rd8 {[%clk 0:01:18]} 28. Nf4+ {[%clk 0:01:38]}  Kd7 {[%clk 0:01:18]} 29. Rh7 {[%clk 0:01:38]}  Ke8 {[%clk 0:01:17]} 30. Rh8+ {[%clk 0:01:36]}  Kd7 {[%clk 0:01:12]} 31. Rxd8+ {[%clk 0:01:31]}  Bxd8 {[%clk 0:01:13]} 32. Ke4 {[%clk 0:01:31]}  Bh4 {[%clk 0:01:10]} 33. Kf5 {[%clk 0:01:30]}  Ke7 {[%clk 0:01:07]} 34. g5 {[%clk 0:01:23]}  Bf2 {[%clk 0:01:00]} 35. e6 {[%clk 0:01:20]}  Bd4 {[%clk 0:00:55]} 36. b3 {[%clk 0:01:18]}  Be3 {[%clk 0:00:48]} 37. exf7 {[%clk 0:01:16]}  Kxf7 {[%clk 0:00:48]} 38. Ne6 {[%clk 0:01:10]}  Ke7 {[%clk 0:00:33]} 39. Nxc7 {[%clk 0:01:04]}  Kd6 {[%clk 0:00:30]} 40. Ne8+ {[%clk 0:01:02]}  Ke7 {[%clk 0:00:30]} 41. Nf6 {[%clk 0:01:01]}  Bd4 {[%clk 0:00:31]} 42. Ng4 {[%clk 0:01:00]}  Bg7 {[%clk 0:00:29]} 43. Nf6 {[%clk 0:00:54]}  Bh8 {[%clk 0:00:25]} 44. Ne4 {[%clk 0:00:49]}  Bg7 {[%clk 0:00:24]} 45. Nc5 {[%clk 0:00:47]}  b6 {[%clk 0:00:22]} 46. Ne4 {[%clk 0:00:47]}  a5 {[%clk 0:00:21]} 47. a4 {[%clk 0:00:46]}  b5 {[%clk 0:00:20]} 48. Nf6 {[%clk 0:00:41]}  Kf7 {[%clk 0:00:17]} 49. Nh5 {[%clk 0:00:35]}  Bh8 {[%clk 0:00:14]} 50. g6+ {[%clk 0:00:35]}  Ke7 {[%clk 0:00:15]} 51. g7 {[%clk 0:00:13]}  Bxg7 {[%clk 0:00:15]} 52. Nxg7 {[%clk 0:00:14]}  bxa4 {[%clk 0:00:16]} 53. bxa4 {[%clk 0:00:13]}  Kd6 {[%clk 0:00:17]} 54. Ne6 {[%clk 0:00:05]}  Kd5 {[%clk 0:00:17]} 55. Nd8 {[%clk 0:00:05]}  Kc5 {[%clk 0:00:16]} 56. Ke4 {[%clk 0:00:05]}  Kb4 {[%clk 0:00:15]} 57. Nxc6+ {[%clk 0:00:05]}  Kxa4 {[%clk 0:00:16]} 58. Nxa5 {[%clk 0:00:05]}  Kb4 {[%clk 0:00:14]} 59. Kd4 {[%clk 0:00:05]}  Kxa5 {[%clk 0:00:13]} 60. Kc5 {[%clk 0:00:05]} 1-0


[Site "https://www.chess.com"]

[Event "Titled Tuesday Blitz June 28 Early 2022"]
[White "Ianov, Viktor"]
[Black "Kuzmin, Roman"]
[WhiteFideId "14102730"]
[BlackFideId "44134932"]
[WhiteElo "2152"]
[BlackElo "1968"]
[Result "1/2-1/2"]
[Round "10"]
[TimeControl "180+1"]
[Date "2022.06.28"]
[WhiteClock "0:01:07"]
[BlackClock "0:00:04"]

1. Nf3 {[%clk 0:03:00]}  d5 {[%clk 0:02:59]} 2. g3 {[%clk 0:03:00]}  Nf6 {[%clk 0:02:59]} 3. Bg2 {[%clk 0:03:01]}  c6 {[%clk 0:03:00]} 4. O-O {[%clk 0:03:00]}  Bg4 {[%clk 0:03:00]} 5. d3 {[%clk 0:03:00]}  Nbd7 {[%clk 0:03:01]} 6. Nbd2 {[%clk 0:03:01]}  e5 {[%clk 0:03:01]} 7. e4 {[%clk 0:03:01]}  Bd6 {[%clk 0:03:01]} 8. h3 {[%clk 0:02:59]}  Bh5 {[%clk 0:03:01]} 9. exd5 {[%clk 0:03:00]}  cxd5 {[%clk 0:03:00]} 10. c4 {[%clk 0:03:00]}  d4 {[%clk 0:02:45]} 11. b4 {[%clk 0:02:59]}  O-O {[%clk 0:02:30]} 12. Qb3 {[%clk 0:02:54]}  a5 {[%clk 0:02:28]} 13. b5 {[%clk 0:02:47]}  Qe7 {[%clk 0:02:12]} 14. Re1 {[%clk 0:02:45]}  Nc5 {[%clk 0:02:07]} 15. Qc2 {[%clk 0:02:44]}  Qc7 {[%clk 0:02:05]} 16. Ba3 {[%clk 0:02:39]}  Rae8 {[%clk 0:02:01]} 17. Bxc5 {[%clk 0:02:34]}  Bxc5 {[%clk 0:02:00]} 18. Ng5 {[%clk 0:02:33]}  h6 {[%clk 0:01:54]} 19. Nge4 {[%clk 0:02:32]}  Nxe4 {[%clk 0:01:54]} 20. Bxe4 {[%clk 0:02:30]}  f5 {[%clk 0:01:53]} 21. Bd5+ {[%clk 0:02:29]}  Kh8 {[%clk 0:01:53]} 22. a3 {[%clk 0:02:29]}  e4 {[%clk 0:01:21]} 23. dxe4 {[%clk 0:02:22]}  d3 {[%clk 0:01:21]} 24. Qxd3 {[%clk 0:02:20]}  Bxf2+ {[%clk 0:01:20]} 25. Kg2 {[%clk 0:02:10]}  Bxe1 {[%clk 0:01:18]} 26. Rxe1 {[%clk 0:02:10]}  fxe4 {[%clk 0:01:18]} 27. Rxe4 {[%clk 0:02:09]}  Bg6 {[%clk 0:01:15]} 28. Rxe8 {[%clk 0:02:04]}  Bxd3 {[%clk 0:00:59]} 29. Rxf8+ {[%clk 0:02:04]}  Kh7 {[%clk 0:01:00]} 30. Rf7 {[%clk 0:01:46]}  Qe5 {[%clk 0:00:51]} 31. Rf2 {[%clk 0:01:39]}  b6 {[%clk 0:00:46]} 32. Nf3 {[%clk 0:01:37]}  Qc3 {[%clk 0:00:44]} 33. Nd2 {[%clk 0:01:32]}  a4 {[%clk 0:00:20]} 34. h4 {[%clk 0:01:32]}  Qd4 {[%clk 0:00:19]} 35. Rf3 {[%clk 0:01:27]}  Bxc4 {[%clk 0:00:11]} 36. Bxc4 {[%clk 0:01:23]}  Qxd2+ {[%clk 0:00:11]} 37. Kh3 {[%clk 0:01:18]}  Qd7+ {[%clk 0:00:09]} 38. g4 {[%clk 0:01:18]}  Qd1 {[%clk 0:00:06]} 39. Bd3+ {[%clk 0:01:17]}  Kg8 {[%clk 0:00:03]} 40. Kg3 {[%clk 0:01:17]}  Qg1+ {[%clk 0:00:02]} 41. Kf4 {[%clk 0:01:17]}  Qd4+ {[%clk 0:00:03]} 42. Kg3 {[%clk 0:01:17]}  Qg1+ {[%clk 0:00:03]} 43. Kf4 {[%clk 0:01:17]}  Qa1 {[%clk 0:00:03]} 44. h5 {[%clk 0:01:16]}  Qd4+ {[%clk 0:00:02]} 45. Kg3 {[%clk 0:01:16]}  Qd6+ {[%clk 0:00:02]} 46. Kg2 {[%clk 0:01:15]}  g5 {[%clk 0:00:02]} 47. Bf5 {[%clk 0:01:13]}  Qc5 {[%clk 0:00:02]} 48. Be6+ {[%clk 0:01:11]}  Kh8 {[%clk 0:00:02]} 49. Bd7 {[%clk 0:01:09]}  Qc2+ {[%clk 0:00:02]} 50. Kh3 {[%clk 0:01:07]}  Qd1 {[%clk 0:00:01]} 51. Bc6 {[%clk 0:01:07]}  Qe2 {[%clk 0:00:01]} 52. Kg3 {[%clk 0:01:07]}  Kg7 {[%clk 0:00:01]} 53. Kh3 {[%clk 0:01:07]}  Qe5 {[%clk 0:00:01]} 54. Kg2 {[%clk 0:01:07]}  Qe1 {[%clk 0:00:02]} 55. Kh3 {[%clk 0:01:07]}  Qh1+ {[%clk 0:00:02]} 56. Kg3 {[%clk 0:01:07]}  Qg1+ {[%clk 0:00:03]} 57. Kh3 {[%clk 0:01:07]}  Qh1+ {[%clk 0:00:03]} 58. Kg3 {[%clk 0:01:07]}  Qe1+ {[%clk 0:00:04]} 59. Kh3 {[%clk 0:01:07]}  Qe5 {[%clk 0:00:04]} 60. Kg2 {[%clk 0:01:07]}  Qe1 {[%clk 0:00:04]} 61. Kh3 {[%clk 0:01:07]} 1/2-1/2


[Site "https://www.chess.com"]

[Event "Titled Tuesday Blitz June 28 Early 2022"]
[White "Jeet, Jain"]
[Black "Ismayil, Malak"]
[WhiteFideId "5073022"]
[BlackFideId "13412604"]
[WhiteElo "2055"]
[BlackElo "1879"]
[Result "0-1"]
[Round "10"]
[TimeControl "180+1"]
[Date "2022.06.28"]
[WhiteClock "0:00:07"]
[BlackClock "0:00:07"]

1. d4 {[%clk 0:03:00]}  Nf6 {[%clk 0:02:59]} 2. Nf3 {[%clk 0:02:56]}  e6 {[%clk 0:02:58]} 3. e3 {[%clk 0:02:41]}  b6 {[%clk 0:02:56]} 4. b3 {[%clk 0:02:32]}  Bb7 {[%clk 0:02:57]} 5. Bb2 {[%clk 0:02:33]}  d6 {[%clk 0:02:56]} 6. c4 {[%clk 0:02:32]}  Be7 {[%clk 0:02:57]} 7. Bd3 {[%clk 0:02:33]}  O-O {[%clk 0:02:57]} 8. O-O {[%clk 0:02:33]}  Nbd7 {[%clk 0:02:57]} 9. Nbd2 {[%clk 0:02:34]}  Re8 {[%clk 0:02:57]} 10. e4 {[%clk 0:02:34]}  Bf8 {[%clk 0:02:57]} 11. e5 {[%clk 0:02:34]}  Nh5 {[%clk 0:02:52]} 12. Bc2 {[%clk 0:02:27]}  g6 {[%clk 0:02:49]} 13. Re1 {[%clk 0:02:22]}  Ng7 {[%clk 0:02:27]} 14. Ne4 {[%clk 0:02:17]}  Nf5 {[%clk 0:02:22]} 15. g4 {[%clk 0:02:16]}  Ng7 {[%clk 0:02:20]} 16. h3 {[%clk 0:02:15]}  d5 {[%clk 0:02:12]} 17. cxd5 {[%clk 0:02:05]}  exd5 {[%clk 0:02:13]} 18. Ng3 {[%clk 0:01:59]}  Ne6 {[%clk 0:02:10]} 19. Qd2 {[%clk 0:01:56]}  c5 {[%clk 0:02:00]} 20. h4 {[%clk 0:01:55]}  cxd4 {[%clk 0:01:48]} 21. h5 {[%clk 0:01:55]}  a5 {[%clk 0:01:42]} 22. Kg2 {[%clk 0:01:51]}  Bb4 {[%clk 0:01:40]} 23. Qh6 {[%clk 0:01:47]}  Bf8 {[%clk 0:01:35]} 24. Qc1 {[%clk 0:01:39]}  Rc8 {[%clk 0:01:33]} 25. Nxd4 {[%clk 0:01:38]}  Qh4 {[%clk 0:01:13]} 26. hxg6 {[%clk 0:01:23]}  fxg6 {[%clk 0:01:06]} 27. Qd1 {[%clk 0:01:19]}  Bg7 {[%clk 0:00:56]} 28. Nxe6 {[%clk 0:00:55]}  Rxe6 {[%clk 0:00:55]} 29. f4 {[%clk 0:00:43]}  Nc5 {[%clk 0:00:39]} 30. Rh1 {[%clk 0:00:40]}  Qe7 {[%clk 0:00:34]} 31. Bd4 {[%clk 0:00:40]}  Ne4 {[%clk 0:00:32]} 32. Bd3 {[%clk 0:00:38]}  Qb4 {[%clk 0:00:28]} 33. Be2 {[%clk 0:00:30]}  Nc3 {[%clk 0:00:19]} 34. Bxc3 {[%clk 0:00:25]}  Rxc3 {[%clk 0:00:20]} 35. Bf3 {[%clk 0:00:23]}  Qxf4 {[%clk 0:00:17]} 36. Re1 {[%clk 0:00:18]}  Rxe5 {[%clk 0:00:16]} 37. Rxe5 {[%clk 0:00:13]}  Qxe5 {[%clk 0:00:17]} 38. Nf1 {[%clk 0:00:13]}  Qf4 {[%clk 0:00:15]} 39. Qe2 {[%clk 0:00:13]}  Rc8 {[%clk 0:00:13]} 40. Rd1 {[%clk 0:00:11]}  Kh8 {[%clk 0:00:12]} 41. Bxd5 {[%clk 0:00:11]}  Bxd5+ {[%clk 0:00:12]} 42. Rxd5 {[%clk 0:00:12]}  Rf8 {[%clk 0:00:12]} 43. Ng3 {[%clk 0:00:11]}  Qf6 {[%clk 0:00:09]} 44. Rd7 {[%clk 0:00:11]}  Qc6+ {[%clk 0:00:08]} 45. Kh2 {[%clk 0:00:11]}  Qxd7 {[%clk 0:00:09]} 46. Qe3 {[%clk 0:00:11]}  Qxg4 {[%clk 0:00:08]} 47. Qe7 {[%clk 0:00:09]}  Rf2+ {[%clk 0:00:07]} 48. Kh1 {[%clk 0:00:09]}  Qxg3 {[%clk 0:00:07]} 49. Qe8+ {[%clk 0:00:07]}  Bf8 {[%clk 0:00:07]} 0-1


[Site "https://www.chess.com"]

[Event "Titled Tuesday Blitz June 28 Early 2022"]
[White "Johnson, Ben"]
[Black "Mikhalsky, Vladimir"]
[WhiteFideId "2010917"]
[BlackFideId "14144352"]
[WhiteElo "2203"]
[BlackElo "2301"]
[Result "0-1"]
[Round "10"]
[TimeControl "180+1"]
[Date "2022.06.28"]
[WhiteClock "0:00:10"]
[BlackClock "0:01:35"]

1. Nf3 {[%clk 0:03:00]}  c5 {[%clk 0:02:56]} 2. c4 {[%clk 0:03:00]}  Nf6 {[%clk 0:02:56]} 3. Nc3 {[%clk 0:02:51]}  d5 {[%clk 0:02:55]} 4. cxd5 {[%clk 0:02:49]}  Nxd5 {[%clk 0:02:55]} 5. e4 {[%clk 0:02:39]}  Nxc3 {[%clk 0:02:55]} 6. bxc3 {[%clk 0:02:40]}  g6 {[%clk 0:02:53]} 7. d4 {[%clk 0:02:38]}  Bg7 {[%clk 0:02:54]} 8. h3 {[%clk 0:02:31]}  O-O {[%clk 0:02:52]} 9. Be2 {[%clk 0:02:29]}  Nc6 {[%clk 0:02:52]} 10. Be3 {[%clk 0:02:28]}  cxd4 {[%clk 0:02:52]} 11. cxd4 {[%clk 0:02:27]}  Qa5+ {[%clk 0:02:52]} 12. Qd2 {[%clk 0:02:27]}  Qxd2+ {[%clk 0:02:51]} 13. Kxd2 {[%clk 0:02:25]}  Rd8 {[%clk 0:02:51]} 14. Kc3 {[%clk 0:02:16]}  Be6 {[%clk 0:02:46]} 15. e5 {[%clk 0:01:42]}  Rac8 {[%clk 0:02:43]} 16. Kb2 {[%clk 0:01:42]}  f6 {[%clk 0:02:35]} 17. Rhd1 {[%clk 0:01:18]}  fxe5 {[%clk 0:02:34]} 18. d5 {[%clk 0:01:17]}  Bxd5 {[%clk 0:02:25]} 19. Rxd5 {[%clk 0:01:08]}  Rxd5 {[%clk 0:02:25]} 20. Bc4 {[%clk 0:01:07]}  Nb4 {[%clk 0:02:24]} 21. Kb3 {[%clk 0:00:54]}  b5 {[%clk 0:02:05]} 22. Bxd5+ {[%clk 0:00:45]}  Nxd5 {[%clk 0:02:05]} 23. Rd1 {[%clk 0:00:39]}  Rc3+ {[%clk 0:01:51]} 24. Kb2 {[%clk 0:00:32]}  e4 {[%clk 0:01:49]} 25. Bd4 {[%clk 0:00:11]}  exf3 {[%clk 0:01:47]} 26. Bxg7 {[%clk 0:00:11]}  Kxg7 {[%clk 0:01:42]} 27. Rxd5 {[%clk 0:00:10]}  fxg2 {[%clk 0:01:40]} 28. Rg5 {[%clk 0:00:10]}  Rxh3 {[%clk 0:01:38]} 29. Rxg2 {[%clk 0:00:10]}  Rf3 {[%clk 0:01:38]} 30. Kc2 {[%clk 0:00:10]}  b4 {[%clk 0:01:37]} 31. Kd2 {[%clk 0:00:10]}  e5 {[%clk 0:01:37]} 32. Ke2 {[%clk 0:00:10]}  Ra3 {[%clk 0:01:35]} 0-1


[Site "https://www.chess.com"]

[Event "Titled Tuesday Blitz June 28 Early 2022"]
[White "Jones, Gawain C B"]
[Black "Kjartansson, David"]
[WhiteFideId "409561"]
[BlackFideId "2301130"]
[WhiteElo "2657"]
[BlackElo "2382"]
[Result "1-0"]
[Round "10"]
[TimeControl "180+1"]
[Date "2022.06.28"]
[WhiteClock "0:00:06"]
[BlackClock "0:00:07"]

1. c4 {[%clk 0:03:00]}  d6 {[%clk 0:02:58]} 2. d4 {[%clk 0:02:59]}  Nf6 {[%clk 0:02:57]} 3. Nc3 {[%clk 0:02:59]}  Nbd7 {[%clk 0:02:53]} 4. e4 {[%clk 0:02:57]}  e5 {[%clk 0:02:49]} 5. d5 {[%clk 0:02:56]}  Be7 {[%clk 0:02:33]} 6. Be3 {[%clk 0:02:47]}  c6 {[%clk 0:02:23]} 7. h3 {[%clk 0:02:35]}  O-O {[%clk 0:02:17]} 8. Be2 {[%clk 0:02:32]}  Nc5 {[%clk 0:02:14]} 9. Qc2 {[%clk 0:02:15]}  cxd5 {[%clk 0:02:12]} 10. cxd5 {[%clk 0:02:12]}  Qa5 {[%clk 0:02:09]} 11. Bd2 {[%clk 0:02:03]}  Qb4 {[%clk 0:02:09]} 12. Rd1 {[%clk 0:01:29]}  Ncxe4 {[%clk 0:02:05]} 13. a3 {[%clk 0:01:05]}  Qc5 {[%clk 0:01:51]} 14. Be3 {[%clk 0:01:05]}  Qc7 {[%clk 0:01:47]} 15. Nf3 {[%clk 0:01:02]}  Bf5 {[%clk 0:01:43]} 16. Bd3 {[%clk 0:00:59]}  Nxc3 {[%clk 0:01:27]} 17. Bxf5 {[%clk 0:00:52]}  Ncxd5 {[%clk 0:01:28]} 18. Qxc7 {[%clk 0:00:49]}  Nxc7 {[%clk 0:01:28]} 19. O-O {[%clk 0:00:49]}  h6 {[%clk 0:01:24]} 20. Bd2 {[%clk 0:00:42]}  g6 {[%clk 0:01:06]} 21. Bb1 {[%clk 0:00:41]}  Kg7 {[%clk 0:01:06]} 22. Rfe1 {[%clk 0:00:41]}  Ne6 {[%clk 0:01:03]} 23. Bb4 {[%clk 0:00:40]}  Nc5 {[%clk 0:00:44]} 24. Nxe5 {[%clk 0:00:32]}  dxe5 {[%clk 0:00:45]} 25. Rxe5 {[%clk 0:00:32]}  Rad8 {[%clk 0:00:42]} 26. Rxd8 {[%clk 0:00:19]}  Rxd8 {[%clk 0:00:43]} 27. Rxe7 {[%clk 0:00:19]}  Rd1+ {[%clk 0:00:41]} 28. Re1 {[%clk 0:00:18]}  Rxe1+ {[%clk 0:00:26]} 29. Bxe1 {[%clk 0:00:19]}  Nd5 {[%clk 0:00:23]} 30. Kf1 {[%clk 0:00:19]}  Kf6 {[%clk 0:00:20]} 31. Ba2 {[%clk 0:00:19]}  Nf4 {[%clk 0:00:17]} 32. Bc3+ {[%clk 0:00:18]}  Ke7 {[%clk 0:00:13]} 33. g3 {[%clk 0:00:16]}  Nxh3 {[%clk 0:00:09]} 34. Bb4 {[%clk 0:00:14]}  b6 {[%clk 0:00:09]} 35. f4 {[%clk 0:00:14]}  g5 {[%clk 0:00:08]} 36. Kg2 {[%clk 0:00:12]}  g4 {[%clk 0:00:08]} 37. Bc4 {[%clk 0:00:06]}  h5 {[%clk 0:00:07]} 38. Bf1 {[%clk 0:00:03]}  Kf6 {[%clk 0:00:06]} 39. Bxc5 {[%clk 0:00:03]}  bxc5 {[%clk 0:00:06]} 40. Bc4 {[%clk 0:00:01]}  Ke7 {[%clk 0:00:06]} 41. Bd3 {[%clk 0:00:02]}  Ke6 {[%clk 0:00:04]} 42. Bc4+ {[%clk 0:00:02]}  Ke7 {[%clk 0:00:03]} 43. b3 {[%clk 0:00:02]}  a5 {[%clk 0:00:03]} 44. Kf1 {[%clk 0:00:03]}  f6 {[%clk 0:00:02]} 45. Kg2 {[%clk 0:00:03]}  Kf8 {[%clk 0:00:02]} 46. Bd3 {[%clk 0:00:03]}  Kg7 {[%clk 0:00:02]} 47. Bf5 {[%clk 0:00:04]}  Kh6 {[%clk 0:00:02]} 48. Bd7 {[%clk 0:00:03]}  Kg7 {[%clk 0:00:02]} 49. Be8 {[%clk 0:00:04]}  Kh6 {[%clk 0:00:03]} 50. Bf7 {[%clk 0:00:03]}  f5 {[%clk 0:00:03]} 51. Be8 {[%clk 0:00:04]}  h4 {[%clk 0:00:02]} 52. Bd7 {[%clk 0:00:04]}  hxg3 {[%clk 0:00:02]} 53. Kxg3 {[%clk 0:00:04]}  Kg6 {[%clk 0:00:02]} 54. Bc6 {[%clk 0:00:02]}  Ng1 {[%clk 0:00:01]} 55. Kf2 {[%clk 0:00:02]}  Nh3+ {[%clk 0:00:01]} 56. Ke3 {[%clk 0:00:03]}  Kf6 {[%clk 0:00:02]} 57. Bg2 {[%clk 0:00:03]}  Ng1 {[%clk 0:00:01]} 58. Kf2 {[%clk 0:00:03]}  Nh3+ {[%clk 0:00:01]} 59. Kg3 {[%clk 0:00:03]}  Ng1 {[%clk 0:00:01]} 60. Kf2 {[%clk 0:00:03]}  Nh3+ {[%clk 0:00:01]} 61. Bxh3 {[%clk 0:00:04]}  gxh3 {[%clk 0:00:02]} 62. Kg3 {[%clk 0:00:05]}  Ke6 {[%clk 0:00:02]} 63. Kxh3 {[%clk 0:00:05]}  Kd5 {[%clk 0:00:02]} 64. Kh4 {[%clk 0:00:05]}  Kd4 {[%clk 0:00:02]} 65. Kg5 {[%clk 0:00:04]}  a4 {[%clk 0:00:02]} 66. bxa4 {[%clk 0:00:04]}  c4 {[%clk 0:00:02]} 67. a5 {[%clk 0:00:04]}  c3 {[%clk 0:00:03]} 68. a6 {[%clk 0:00:05]}  c2 {[%clk 0:00:04]} 69. a7 {[%clk 0:00:06]}  c1=Q {[%clk 0:00:04]} 70. a8=Q {[%clk 0:00:06]}  Qg1+ {[%clk 0:00:04]} 71. Kxf5 {[%clk 0:00:05]}  Qb1+ {[%clk 0:00:03]} 72. Kg5 {[%clk 0:00:06]}  Qg1+ {[%clk 0:00:03]} 73. Kf6 {[%clk 0:00:06]}  Qg4 {[%clk 0:00:03]} 74. Qa4+ {[%clk 0:00:04]}  Kc5 {[%clk 0:00:02]} 75. Qb4+ {[%clk 0:00:04]}  Kc6 {[%clk 0:00:03]} 76. Qc4+ {[%clk 0:00:04]}  Kb6 {[%clk 0:00:03]} 77. Qe6+ {[%clk 0:00:04]}  Qxe6+ {[%clk 0:00:02]} 78. Kxe6 {[%clk 0:00:04]}  Ka5 {[%clk 0:00:03]} 79. f5 {[%clk 0:00:04]}  Ka4 {[%clk 0:00:04]} 80. f6 {[%clk 0:00:05]}  Kxa3 {[%clk 0:00:05]} 81. f7 {[%clk 0:00:06]}  Ka2 {[%clk 0:00:06]} 82. f8=Q {[%clk 0:00:06]}  Ka1 {[%clk 0:00:07]} 83. Qb4 {[%clk 0:00:06]} 1-0


[Site "https://www.chess.com"]

[Event "Titled Tuesday Blitz June 28 Early 2022"]
[White "Kamsky, Gata"]
[Black "Bortnyk, Olexandr"]
[WhiteFideId "2000024"]
[BlackFideId "14120828"]
[WhiteElo "2645"]
[BlackElo "2723"]
[Result "0-1"]
[Round "10"]
[TimeControl "180+1"]
[Date "2022.06.28"]
[WhiteClock "0:00:01"]
[BlackClock "0:00:01"]

1. e4 {[%clk 0:03:00]}  d6 {[%clk 0:03:00]} 2. Nc3 {[%clk 0:02:57]}  Nf6 {[%clk 0:03:01]} 3. f4 {[%clk 0:02:56]}  Nbd7 {[%clk 0:02:58]} 4. Nf3 {[%clk 0:02:55]}  e5 {[%clk 0:02:59]} 5. fxe5 {[%clk 0:02:51]}  dxe5 {[%clk 0:03:00]} 6. Bc4 {[%clk 0:02:45]}  Bc5 {[%clk 0:03:00]} 7. d3 {[%clk 0:02:42]}  c6 {[%clk 0:02:59]} 8. Qe2 {[%clk 0:02:37]}  b5 {[%clk 0:02:57]} 9. Bb3 {[%clk 0:02:35]}  Qb6 {[%clk 0:02:58]} 10. a4 {[%clk 0:02:18]}  b4 {[%clk 0:02:50]} 11. a5 {[%clk 0:02:15]}  Qc7 {[%clk 0:02:47]} 12. Nd1 {[%clk 0:02:14]}  Ba6 {[%clk 0:02:47]} 13. Ne3 {[%clk 0:02:09]}  Nxe4 {[%clk 0:02:41]} 14. Nf5 {[%clk 0:01:56]}  O-O-O {[%clk 0:02:05]} 15. Qxe4 {[%clk 0:01:45]}  Nf6 {[%clk 0:02:04]} 16. Qh4 {[%clk 0:01:43]}  e4 {[%clk 0:01:58]} 17. Bf4 {[%clk 0:01:40]}  Qd7 {[%clk 0:01:56]} 18. Nxg7 {[%clk 0:01:05]}  exf3 {[%clk 0:01:49]} 19. O-O-O {[%clk 0:01:02]}  fxg2 {[%clk 0:01:45]} 20. Qxf6 {[%clk 0:00:57]}  gxh1=Q {[%clk 0:01:32]} 21. Rxh1 {[%clk 0:00:56]}  Bd4 {[%clk 0:01:28]} 22. Qh6 {[%clk 0:00:48]}  Kb7 {[%clk 0:00:34]} 23. Kb1 {[%clk 0:00:27]}  Rdg8 {[%clk 0:00:33]} 24. Ne6 {[%clk 0:00:15]}  Rg6 {[%clk 0:00:30]} 25. Nf8 {[%clk 0:00:14]}  Rxh6 {[%clk 0:00:10]} 26. Nxd7 {[%clk 0:00:14]}  Rh5 {[%clk 0:00:11]} 27. Re1 {[%clk 0:00:10]}  Rf5 {[%clk 0:00:05]} 28. Bg3 {[%clk 0:00:09]}  Kc8 {[%clk 0:00:03]} 29. Re7 {[%clk 0:00:06]}  Rd8 {[%clk 0:00:03]} 30. Ne5 {[%clk 0:00:06]}  Bxe5 {[%clk 0:00:02]} 31. Bxe5 {[%clk 0:00:06]}  Rxe5 {[%clk 0:00:02]} 32. Rxe5 {[%clk 0:00:06]}  Rf8 {[%clk 0:00:02]} 33. Rh5 {[%clk 0:00:03]}  f6 {[%clk 0:00:01]} 34. Rxh7 {[%clk 0:00:02]}  Kb8 {[%clk 0:00:01]} 35. Rf7 {[%clk 0:00:01]}  Rh8 {[%clk 0:00:01]} 0-1


[Site "https://www.chess.com"]

[Event "Titled Tuesday Blitz June 28 Early 2022"]
[White "Kohler, Aran"]
[Black "Melikhov, Evgeny V."]
[WhiteFideId "1002856"]
[BlackFideId "4122046"]
[WhiteElo "2269"]
[BlackElo "1904"]
[Result "1-0"]
[Round "10"]
[TimeControl "180+1"]
[Date "2022.06.28"]
[WhiteClock "0:00:29"]
[BlackClock "0:00:12"]

1. e4 {[%clk 0:03:00]}  c5 {[%clk 0:02:59]} 2. Nf3 {[%clk 0:03:00]}  d6 {[%clk 0:02:59]} 3. d4 {[%clk 0:02:59]}  cxd4 {[%clk 0:03:00]} 4. Nxd4 {[%clk 0:03:00]}  Nf6 {[%clk 0:03:00]} 5. Nc3 {[%clk 0:03:00]}  a6 {[%clk 0:03:00]} 6. f3 {[%clk 0:02:55]}  e5 {[%clk 0:03:00]} 7. Nb3 {[%clk 0:02:49]}  Be6 {[%clk 0:03:00]} 8. Be3 {[%clk 0:02:49]}  Be7 {[%clk 0:02:59]} 9. Nd5 {[%clk 0:02:47]}  Nxd5 {[%clk 0:02:58]} 10. exd5 {[%clk 0:02:47]}  Bf5 {[%clk 0:02:58]} 11. Bd3 {[%clk 0:02:47]}  Bxd3 {[%clk 0:02:49]} 12. Qxd3 {[%clk 0:02:47]}  O-O {[%clk 0:02:49]} 13. O-O {[%clk 0:02:46]}  f5 {[%clk 0:02:47]} 14. c4 {[%clk 0:02:46]}  Nd7 {[%clk 0:02:46]} 15. Kh1 {[%clk 0:02:39]}  b6 {[%clk 0:02:30]} 16. a4 {[%clk 0:02:39]}  a5 {[%clk 0:02:26]} 17. Nd2 {[%clk 0:02:36]}  Nc5 {[%clk 0:02:25]} 18. Qc2 {[%clk 0:02:27]}  Bg5 {[%clk 0:02:21]} 19. f4 {[%clk 0:02:23]}  exf4 {[%clk 0:02:19]} 20. Bxf4 {[%clk 0:02:23]}  Bxf4 {[%clk 0:02:19]} 21. Rxf4 {[%clk 0:02:23]}  Qe7 {[%clk 0:02:07]} 22. Raf1 {[%clk 0:02:15]}  g6 {[%clk 0:02:03]} 23. Nf3 {[%clk 0:02:11]}  Rae8 {[%clk 0:02:00]} 24. Nd4 {[%clk 0:02:10]}  Qe3 {[%clk 0:01:47]} 25. g3 {[%clk 0:01:34]}  Re4 {[%clk 0:01:42]} 26. Rxe4 {[%clk 0:01:25]}  Nxe4 {[%clk 0:01:22]} 27. Ne6 {[%clk 0:01:20]}  Rc8 {[%clk 0:01:19]} 28. b3 {[%clk 0:01:18]}  Nc3 {[%clk 0:01:05]} 29. Qb2 {[%clk 0:01:00]}  Qe2 {[%clk 0:00:41]} 30. Qxe2 {[%clk 0:00:52]}  Nxe2 {[%clk 0:00:40]} 31. Rf2 {[%clk 0:00:48]}  Nc1 {[%clk 0:00:35]} 32. Rf3 {[%clk 0:00:47]}  Na2 {[%clk 0:00:32]} 33. Kg2 {[%clk 0:00:46]}  Nb4 {[%clk 0:00:31]} 34. h4 {[%clk 0:00:45]}  Kf7 {[%clk 0:00:30]} 35. Ng5+ {[%clk 0:00:43]}  Kg7 {[%clk 0:00:29]} 36. Re3 {[%clk 0:00:42]}  h6 {[%clk 0:00:22]} 37. Re7+ {[%clk 0:00:35]}  Kf8 {[%clk 0:00:19]} 38. Rh7 {[%clk 0:00:35]}  Kg8 {[%clk 0:00:19]} 39. Rxh6 {[%clk 0:00:35]}  Kg7 {[%clk 0:00:16]} 40. Rh7+ {[%clk 0:00:35]}  Kf6 {[%clk 0:00:17]} 41. Rf7+ {[%clk 0:00:35]}  Ke5 {[%clk 0:00:17]} 42. Kf3 {[%clk 0:00:34]}  Kd4 {[%clk 0:00:17]} 43. Rf6 {[%clk 0:00:32]}  Kc3 {[%clk 0:00:17]} 44. Rxd6 {[%clk 0:00:32]}  Kxb3 {[%clk 0:00:18]} 45. Rxb6 {[%clk 0:00:32]}  Kxa4 {[%clk 0:00:17]} 46. Rxg6 {[%clk 0:00:32]}  Rxc4 {[%clk 0:00:16]} 47. h5 {[%clk 0:00:30]}  Nxd5 {[%clk 0:00:15]} 48. h6 {[%clk 0:00:30]}  Rc1 {[%clk 0:00:12]} 49. h7 {[%clk 0:00:29]}  Rh1 {[%clk 0:00:12]} 50. Rg8 {[%clk 0:00:29]} 1-0


[Site "https://www.chess.com"]